bitfinex-derivatives/quotes_SOLF0:USTF0_20260204
["timestamp","ask_amount","ask_price","bid_price","bid_amount"]
[1770213190222,8.93790676,94.6,94.49,8.93790676]
[1770213190425,8.93790676,94.6,94.503,10.35561687]
[1770213190622,8.93790676,94.56,94.45,8.93790676]
[1770213190825,8.93790676,94.58,94.47,8.93790676]
[1770213191236,8.93790676,94.56,94.45,8.93790676]
[1770213191629,9.5306,94.579,94.47,8.93790676]
[1770213192029,8.93790676,94.58,94.47,8.93790676]
[1770213192235,8.93790676,94.58,94.471,88.04]
[1770213192535,8.93790676,94.6,94.492,9.5392]
[1770213192727,8.93790676,94.6,94.493,5.13851849]
[1770213193729,8.93790676,94.6,94.496,5.13851849]
[1770213194826,8.93790676,94.6,94.501,4.81299792]
[1770213195427,18.46440676,94.62,94.501,4.81299792]
[1770213195838,9.5265,94.62,94.501,4.81299792]
[1770213196025,18.46240676,94.64,94.521,4.81299792]
[1770213196229,18.46240676,94.64,94.541,4.81299792]
[1770213196841,9.5225,94.659,94.561,4.80927841]
[1770213197137,8.93790676,94.64,94.561,4.80927841]
[1770213198344,9.5225,94.659,94.561,4.80927841]
[1770213199136,8.93790676,94.64,94.561,4.80927841]
[1770213199935,9.5225,94.659,94.561,4.80927841]
[1770213201039,8.93790676,94.64,94.537,4.74421486]
[1770213201338,8.93790676,94.62,94.537,4.74421486]
[1770213201933,9.5269,94.616,94.537,4.74421486]
[1770213202532,18.46640676,94.6,94.501,4.73832173]
[1770213203338,9.5268,94.617,94.511,4.73832173]
[1770213203736,9.5268,94.617,94.513,4.73798657]
[1770213203941,9.5268,94.617,94.518,4.73798657]
[1770213204644,8.93790676,94.6,94.518,4.73798657]
[1770213204831,8.93790676,94.62,94.518,4.73798657]
[1770213205031,9.5267,94.618,94.522,4.7285703]
[1770213205939,9.5267,94.618,94.51,8.93790676]
[1770213205940,9.5285,94.599,94.524,4.7285703]
[1770213207842,9.527,94.614,94.527,4.70406829]
[1770213208243,9.5256,94.629,94.535,4.70406829]
[1770213208744,8.93790676,94.64,94.5,8.93790676]
[1770213208745,9.5246,94.639,94.55,8.93790676]
[1770213208933,9.5246,94.639,94.551,4.68532706]
[1770213209441,9.5246,94.639,94.533,87.96]
[1770213209442,3.62409132,94.664,94.6,8.93790676]
[1770213209635,3.62409132,94.664,94.59,8.93790676]
[1770213209941,3.62409132,94.664,94.592,9.5292]
[1770213210140,3.62409132,94.664,94.591,3.61403192]
[1770213210934,9.5222,94.662,94.591,3.61403192]
[1770213211133,3.62409132,94.661,94.591,3.61403192]
[1770213212340,3.62409132,94.689,94.611,3.61403192]
[1770213212734,9.5197,94.687,94.611,3.61403192]
[1770213213247,13.14379132,94.687,94.611,3.61403192]
[1770213213636,8.94401085,94.71,94.611,3.61403192]
[1770213213637,9.5211,94.674,94.611,3.61403192]
[1770213214544,8.94401085,94.71,94.59,88.01403192]
[1770213214545,9.5226,94.659,94.59,88.01403192]
[1770213214845,3.62409132,94.673,94.59,88.01403192]
[1770213215840,3.62409132,94.665,94.59,3.61403192]
[1770213216244,3.62409132,94.665,94.591,3.61403192]
[1770213216844,3.62409132,94.665,94.604,9.528]
[1770213217547,3.62409132,94.665,94.591,3.61403192]
[1770213218140,3.62409132,94.665,94.593,3.61403192]
[1770213218748,9.5211,94.674,94.607,9.5277]
[1770213219541,9.5211,94.674,94.595,3.61403192]
[1770213220247,3.62409132,94.709,94.611,3.61403192]
[1770213220547,3.62409132,94.709,94.573,148.2621]
[1770213220548,3.62409132,94.709,94.631,3.61403192]
[1770213221749,3.62409132,94.709,94.649,9.5234]
[1770213222049,3.62409132,94.709,94.631,3.61403192]
[1770213223449,9.5176,94.708,94.637,9.5247]
[1770213223847,9.5176,94.708,94.631,3.61403192]
[1770213224851,9.5176,94.708,94.647,9.5237]
[1770213227959,9.5186,94.698,94.637,9.5247]
[1770213229263,3.62409132,94.708,94.647,9.5237]
[1770213229655,9.5161,94.723,94.657,9.5226]
[1770213229968,9.5161,94.723,94.657,13.13663192]
[1770213230168,3.62409132,94.722,94.609,3.61403192]
[1770213230367,3.62409132,94.679,94.609,3.61403192]
[1770213230664,3.62409132,94.679,94.6,8.94401085]
[1770213230967,9.5221,94.663,94.602,9.5281]
[1770213231564,9.5221,94.663,94.603,3.61403192]
[1770213232968,3.62409132,94.659,94.59,9.5294]
[1770213233166,3.62409132,94.659,94.584,3.61403192]
[1770213233462,9.5252,94.633,94.558,3.61403192]
[1770213233662,9.5252,94.633,94.561,3.61403192]
[1770213234061,9.5264,94.621,94.561,3.61403192]
[1770213234260,3.62409132,94.636,94.561,3.61403192]
[1770213234468,3.60661621,94.629,94.535,3.63112157]
[1770213234671,3.60661621,94.608,94.535,3.63112157]
[1770213234867,3.60661621,94.629,94.551,3.63112157]
[1770213235662,3.60661621,94.629,94.525,87.64]
[1770213235663,3.60661621,94.649,94.571,3.63112157]
[1770213236166,3.60661621,94.689,94.594,3.63112157]
[1770213236767,3.60661621,94.668,94.594,3.63112157]
[1770213237561,3.60661621,94.668,94.595,13.45649107]
[1770213238766,9.5228,94.657,94.595,13.45649107]
[1770213238969,9.5228,94.657,94.596,3.92759107]
[1770213239264,3.60661621,94.668,94.596,3.92759107]
[1770213239868,3.60661621,94.668,94.599,9.5285]
[1770213240572,3.64212978,94.646,94.57,8.94401085]
[1770213240870,3.64212978,94.646,94.556,3.92759107]
[1770213241265,3.64212978,94.646,94.56,9.5324]
[1770213241673,9.5259,94.626,94.56,13.45999107]
[1770213241870,9.5259,94.626,94.565,9.5319]
[1770213242778,9.5245,94.64,94.576,9.5308]
[1770213243275,9.5245,94.64,94.581,13.45789107]
[1770213243477,3.64212978,94.646,94.582,3.92759107]
[1770213243976,3.64212978,94.646,94.591,9.5293]
[1770213244276,3.64212978,94.687,94.592,3.92759107]
[1770213244572,3.64212978,94.687,94.621,9.5263]
[1770213244776,9.5205,94.68,94.592,3.92759107]
[1770213245071,3.64212978,94.687,94.592,3.92759107]
[1770213245570,3.64212978,94.679,94.592,3.92759107]
[1770213246576,9.5224,94.661,94.592,3.92759107]
[1770213247481,3.64212978,94.679,94.62,9.5263]
[1770213248577,3.64212978,94.666,94.593,3.92759107]
[1770213248975,13.16392978,94.666,94.607,9.5277]
[1770213250282,9.5228,94.656,94.597,9.5287]
[1770213251381,9.5228,94.656,94.593,3.92759107]
[1770213251382,3.64212978,94.699,94.593,3.92759107]
[1770213252381,9.5207,94.677,94.618,9.5266]
[1770213253176,9.5215,94.669,94.618,9.5266]
[1770213255478,3.64212978,94.713,94.631,3.92759107]
[1770213256079,9.5184,94.701,94.647,9.5237]
[1770213256276,3.64212978,94.713,94.641,3.92759107]
[1770213256879,3.64212978,94.741,94.669,3.92759107]
[1770213257481,12.68947981,94.795,94.669,3.92759107]
[1770213257482,13.15742978,94.731,94.67,9.5213]
[1770213257680,3.64212978,94.731,94.641,3.92759107]
[1770213258286,3.64212978,94.731,94.64,8.94401085]
[1770213258287,9.5158,94.727,94.669,9.5215]
[1770213258481,3.64212978,94.731,94.662,3.92759107]
[1770213258986,9.5132,94.752,94.694,13.44649107]
[1770213259182,3.64212978,94.751,94.694,9.5189]
[1770213259583,3.64212978,94.751,94.703,9.518]
[1770213260481,3.64212978,94.751,94.691,9.5192]
[1770213260687,3.64212978,94.751,94.661,3.92759107]
[1770213260889,3.64212978,94.749,94.64,8.94401085]
[1770213261086,3.64212978,94.749,94.64,12.87160192]
[1770213261282,3.64212978,94.749,94.641,3.92759107]
[1770213261481,9.5174,94.71,94.651,9.5233]
[1770213261676,3.64212978,94.713,94.651,3.92759107]
[1770213261882,3.64212978,94.713,94.661,9.5223]
[1770213263481,3.64212978,94.772,94.681,3.92759107]
[1770213263879,3.64212978,94.772,94.687,9.5196]
[1770213264082,3.84864444,94.769,94.66,8.94401085]
[1770213264282,3.84864444,94.729,94.64,3.93976489]
[1770213264583,9.5186,94.698,94.64,3.93976489]
[1770213264988,3.84864444,94.709,94.64,3.93976489]
[1770213265190,13.36614444,94.709,94.649,9.5234]
[1770213265684,3.84864444,94.729,94.65,3.93976489]
[1770213265883,9.5172,94.712,94.652,9.5232]
[1770213266084,3.84864444,94.729,94.65,3.93976489]
[1770213266278,9.5192,94.692,94.632,9.5251]
[1770213266478,3.84864444,94.691,94.61,12.88377574]
[1770213266883,3.84864444,94.691,94.623,9.5261]
[1770213267690,9.5201,94.684,94.623,9.5261]
[1770213267886,3.84864444,94.691,94.613,3.93976489]
[1770213269388,9.5211,94.673,94.613,3.93976489]
[1770213270192,3.84864444,94.671,94.593,3.93976489]
[1770213270490,3.84864444,94.691,94.611,3.93976489]
[1770213270683,3.84864444,94.722,94.631,3.93976489]
[1770213271088,3.84864444,94.722,94.65,8.94401085]
[1770213271891,3.84864444,94.722,94.638,9.5246]
[1770213272089,3.84864444,94.719,94.61,8.94401085]
[1770213272290,3.84864444,94.719,94.608,3.93976489]
[1770213272291,3.84864444,94.699,94.608,3.93976489]
[1770213272491,8.94401085,94.7,94.594,9.529]
[1770213272492,9.5234,94.65,94.594,9.529]
[1770213272891,9.5224,94.661,94.591,3.93976489]
[1770213273495,9.5224,94.661,94.604,9.528]
[1770213273698,3.84864444,94.685,94.611,3.93976489]
[1770213274193,9.5192,94.693,94.634,3.93976489]
[1770213274499,3.84864444,94.706,94.634,3.93976489]
[1770213275596,3.84864444,94.706,94.64,9.5243]
[1770213276094,9.519,94.694,94.634,3.93976489]
[1770213276793,3.84864444,94.706,94.623,9.526]
[1770213276999,3.84864444,94.706,94.613,3.93976489]
[1770213277191,3.84864444,94.706,94.61,8.94215624]
[1770213277793,3.84864444,94.678,94.61,8.94215624]
[1770213277994,3.84864444,94.678,94.611,3.93976489]
[1770213278401,13.36924444,94.678,94.628,9.5255]
[1770213278702,3.84864444,94.698,94.611,3.93976489]
[1770213278892,3.84864444,94.698,94.63,8.94215624]
[1770213279091,9.5195,94.689,94.636,9.5248]
[1770213279291,3.84864444,94.698,94.611,3.93976489]
[1770213280092,3.84864444,94.698,94.63,8.94215624]
[1770213281298,9.5202,94.683,94.624,9.526]
[1770213282501,9.5209,94.676,94.624,9.526]
[1770213283902,9.5194,94.69,94.627,3.93976489]
[1770213285499,9.5194,94.69,94.636,9.5248]
[1770213286603,3.84864444,94.698,94.636,9.5248]
[1770213286604,3.84864444,94.698,94.636,3.93976489]
[1770213287900,9.5194,94.691,94.639,9.5245]
[1770213289001,8.09763736,94.736,94.603,87.04]
[1770213289002,3.84864444,94.734,94.648,3.93976489]
[1770213289701,3.84864444,94.716,94.648,3.93976489]
[1770213290704,9.5161,94.723,94.673,9.5211]
[1770213290904,3.84864444,94.735,94.66,8.94215624]
[1770213291106,3.84864444,94.735,94.66,12.88192113]
[1770213291800,9.5169,94.715,94.661,3.93976489]
[1770213292002,3.84864444,94.735,94.661,3.93976489]
[1770213292806,3.84864444,94.735,94.672,9.5211]
[1770213293401,9.5168,94.716,94.664,9.522]
[1770213294303,9.518,94.704,94.661,3.93976489]
[1770213295404,8.09763736,94.746,94.661,3.93976489]
[1770213295605,3.66276806,94.744,94.661,3.93976489]
[1770213296205,9.5169,94.715,94.664,3.6718622]
[1770213296605,9.5161,94.723,94.665,9.5219]
[1770213297109,3.66276806,94.727,94.678,9.5206]
[1770213298107,3.66276806,94.727,94.64,8.94215624]
[1770213298108,8.09763736,94.766,94.701,3.64998537]
[1770213298309,3.76410609,94.814,94.741,3.64998537]
[1770213298903,3.76410609,94.814,94.74,8.94215624]
[1770213299409,3.76410609,94.814,94.732,9.5151]
[1770213299910,3.76410609,94.796,94.732,9.5151]
[1770213300204,3.76410609,94.796,94.723,9.516]
[1770213300513,9.5108,94.776,94.722,3.64998537]
[1770213301107,9.5107,94.777,94.723,9.5161]
[1770213301312,3.76410609,94.787,94.722,3.64998537]
[1770213301506,3.76410609,94.787,94.722,13.16608537]
[1770213301706,9.5107,94.777,94.722,3.64998537]
[1770213305417,9.5107,94.777,94.723,9.516]
[1770213305609,118.66,94.784,94.723,13.16598537]
[1770213306108,9.5098,94.786,94.723,13.16598537]
[1770213306312,119.2,94.785,94.723,13.16598537]
[1770213306704,8.09763736,94.838,94.72,8.94215624]
[1770213306705,3.76410609,94.831,94.738,3.64998537]
[1770213306912,3.76410609,94.829,94.741,3.64998537]
[1770213307107,3.76410609,94.827,94.761,3.64998537]
[1770213307312,3.76410609,94.825,94.741,3.64998537]
[1770213307517,3.76410609,94.823,94.741,3.64998537]
[1770213307815,9.5076,94.808,94.753,9.513]
[1770213308213,3.76410609,94.813,94.753,9.513]
[1770213308608,9.5072,94.812,94.753,9.513]
[1770213308818,9.5072,94.812,94.761,9.5122]
[1770213309007,3.76410609,94.832,94.762,3.64998537]
[1770213309212,9.5053,94.831,94.762,3.64998537]
[1770213309514,3.76410609,94.85,94.771,3.64998537]
[1770213310611,3.76410609,94.85,94.779,9.5103]
[1770213310612,9.5042,94.842,94.779,9.5103]
[1770213310817,3.76410609,94.85,94.779,9.5103]
[1770213311816,9.505,94.834,94.779,9.5103]
[1770213312314,9.5041,94.843,94.779,9.5103]
[1770213312709,3.76410609,94.85,94.789,9.5094]
[1770213312919,3.76410609,94.85,94.779,3.64998537]
[1770213313719,9.5055,94.829,94.779,3.64998537]
[1770213313921,3.76410609,94.833,94.758,3.64998537]
[1770213314113,9.5071,94.813,94.758,3.64998537]
[1770213314710,9.506,94.824,94.758,3.64998537]
[1770213314911,3.76410609,94.833,94.758,3.64998537]
[1770213315430,3.76410609,94.833,94.736,3.64998537]
[1770213315717,3.76410609,94.779,94.69,3.64998537]
[1770213315922,3.76410609,94.777,94.69,3.64998537]
[1770213316125,9.5128,94.756,94.691,9.5192]
[1770213316315,31.78,94.797,94.691,3.64998537]
[1770213316316,3.76410609,94.767,94.691,3.64998537]
[1770213316520,3.76410609,94.778,94.691,3.64998537]
[1770213317817,3.76410609,94.77,94.673,3.64998537]
[1770213318021,147.867,94.827,94.673,3.64998537]
[1770213318022,3.76410609,94.759,94.673,3.64998537]
[1770213319222,3.76410609,94.757,94.673,3.64998537]
[1770213319722,9.5157,94.727,94.673,3.64998537]
[1770213321216,3.76410609,94.719,94.631,3.64998537]
[1770213321419,3.76410609,94.717,94.631,3.64998537]
[1770213321620,3.76410609,94.699,94.631,3.64998537]
[1770213321826,3.76410609,94.698,94.631,3.64998537]
[1770213322222,3.76410609,94.698,94.554,148.2929]
[1770213322223,3.76410609,94.689,94.611,3.64998537]
[1770213322827,3.76410609,94.689,94.614,3.64998537]
[1770213323618,3.76410609,94.689,94.628,3.8456243]
[1770213324423,3.76410609,94.689,94.628,13.3712243]
[1770213324928,3.71156411,94.71,94.632,3.8456243]
[1770213325728,3.71156411,94.706,94.634,9.5249]
[1770213326432,3.71156411,94.706,94.645,3.8456243]
[1770213327328,9.5167,94.718,94.645,3.8456243]
[1770213327835,9.5167,94.718,94.648,3.8456243]
[1770213328128,3.71156411,94.726,94.648,3.8456243]
[1770213328326,3.71156411,94.726,94.655,9.5229]
[1770213328832,3.71156411,94.726,94.658,3.8456243]
[1770213328833,9.5162,94.722,94.658,3.8456243]
[1770213329629,9.5173,94.711,94.658,3.8456243]
[1770213330434,8.94215624,94.73,94.63,8.94215624]
[1770213330435,3.71156411,94.721,94.66,3.8456243]
[1770213331027,13.22796411,94.721,94.66,3.8456243]
[1770213331232,3.71156411,94.72,94.66,3.8456243]
[1770213331625,9.517,94.714,94.66,3.8456243]
[1770213331830,3.71156411,94.713,94.642,3.8456243]
[1770213332532,9.5172,94.712,94.645,3.8456243]
[1770213332736,3.71156411,94.713,94.645,3.8456243]
[1770213333035,13.22866411,94.713,94.649,3.8456243]
[1770213333333,3.71156411,94.712,94.649,3.8456243]
[1770213333540,9.518,94.705,94.649,3.8456243]
[1770213335744,3.71156411,94.696,94.63,3.8456243]
[1770213337647,167.0279,94.742,94.63,3.8456243]
[1770213337648,3.71156411,94.719,94.63,3.8456243]
[1770213337848,3.71156411,94.717,94.63,3.8456243]
[1770213338246,9.5189,94.696,94.637,9.5247]
[1770213338648,9.5189,94.696,94.63,3.8456243]
[1770213339150,3.71156411,94.701,94.645,9.5239]
[1770213339649,9.5169,94.715,94.652,3.8456243]
[1770213339846,3.71156411,94.714,94.652,3.8456243]
[1770213340244,9.5179,94.705,94.656,9.5227]
[1770213340557,3.71156411,94.704,94.634,3.8456243]
[1770213341047,9.5203,94.681,94.626,9.5258]
[1770213341248,3.71156411,94.68,94.626,9.5258]
[1770213341448,3.71156411,94.68,94.627,3.8456243]
[1770213341947,3.71156411,94.68,94.61,3.8456243]
[1770213342454,84.32,94.696,94.52,148.3451]
[1770213342455,3.71156411,94.651,94.561,3.8456243]
[1770213343049,3.71156411,94.679,94.581,3.8456243]
[1770213343457,9.5226,94.659,94.581,3.8456243]
[1770213343758,8.93428658,94.68,94.581,3.8456243]
[1770213343759,3.71156411,94.658,94.581,3.8456243]
[1770213344755,9.5232,94.652,94.583,3.8456243]
[1770213345055,3.71156411,94.679,94.583,3.8456243]
[1770213345349,3.71156411,94.679,94.596,3.8456243]
[1770213346254,9.5223,94.661,94.6,3.8456243]
[1770213347154,9.5214,94.67,94.602,3.8456243]
[1770213347651,9.5219,94.665,94.606,9.5278]
[1770213348149,9.5219,94.665,94.606,13.3734243]
[1770213348350,3.71156411,94.692,94.61,3.8456243]
[1770213348948,9.521,94.674,94.61,3.8456243]
[1770213349449,9.5201,94.684,94.621,3.8456243]
[1770213349849,3.71156411,94.692,94.621,3.8456243]
[1770213350057,3.71156411,94.692,94.632,3.8456243]
[1770213350357,3.71156411,94.719,94.632,3.8456243]
[1770213350845,9.5189,94.695,94.636,3.8456243]
[1770213351052,3.71156411,94.719,94.636,3.8456243]
[1770213351555,3.71156411,94.739,94.659,3.8456243]
[1770213352256,9.5165,94.719,94.66,3.8456243]
[1770213352858,9.5165,94.719,94.662,3.8456243]
[1770213353549,9.5163,94.721,94.665,9.5218]
[1770213353859,9.5163,94.721,94.662,3.8456243]
[1770213354155,3.6983565,94.722,94.642,3.80537823]
[1770213355256,9.5198,94.686,94.642,3.80537823]
[1770213355460,3.6983565,94.694,94.621,3.80537823]
[1770213357252,9.5214,94.67,94.621,3.80537823]
[1770213357659,3.69160255,94.712,94.633,13.27952936]
[1770213358050,3.69160255,94.712,94.633,3.75452936]
[1770213358250,9.5191,94.693,94.635,9.5249]
[1770213358654,3.69160255,94.692,94.635,9.5249]
[1770213358854,3.69160255,94.692,94.633,3.75452936]
[1770213359054,9.5202,94.682,94.634,9.525]
[1770213359460,9.5202,94.682,94.633,13.27952936]
[1770213359767,3.69160255,94.664,94.594,3.75452936]
[1770213360465,84.34,94.69,94.536,84.34]
[1770213360466,3.69160255,94.682,94.601,3.75452936]
[1770213360668,3.69160255,94.682,94.6,8.93428658]
[1770213360669,3.69160255,94.682,94.623,3.75452936]
[1770213361168,3.69160255,94.68,94.603,13.28262936]
[1770213361358,9.5233,94.651,94.604,3.75452936]
[1770213361561,9.5233,94.651,94.586,3.75452936]
[1770213362558,13.21400255,94.661,94.6,9.5284]
[1770213362869,13.21400255,94.661,94.601,3.75452936]
[1770213363369,13.21400255,94.661,94.602,13.28272936]
[1770213365066,13.21400255,94.661,94.603,3.75452936]
[1770213365263,3.69160255,94.697,94.611,3.75452936]
[1770213365965,3.69160255,94.697,94.641,9.5242]
[1770213368269,3.69160255,94.697,94.641,13.27872936]
[1770213368871,9.5188,94.696,94.641,13.27872936]
[1770213369872,9.5197,94.688,94.641,13.27872936]
[1770213370171,118.02,94.723,94.584,19.0601]
[1770213370172,3.69160255,94.687,94.629,9.5255]
[1770213370466,9.5203,94.682,94.63,3.75452936]
[1770213370671,3.69160255,94.687,94.63,3.75452936]
[1770213370864,3.69160255,94.687,94.612,3.75452936]
[1770213371366,9.5224,94.661,94.613,9.5271]
[1770213371763,3.69160255,94.687,94.613,9.5271]
[1770213372161,9.5215,94.669,94.613,9.5271]
[1770213372369,3.69160255,94.687,94.624,3.75452936]
[1770213373070,9.5213,94.671,94.624,3.75452936]
[1770213373272,3.69160255,94.687,94.601,3.75452936]
[1770213373463,9.523,94.654,94.608,9.5276]
[1770213373667,9.523,94.654,94.601,3.75452936]
[1770213374083,9.523,94.654,94.56,19.065]
[1770213374084,3.69160255,94.644,94.575,9.5309]
[1770213374368,3.69160255,94.644,94.576,3.75452936]
[1770213374672,9.5232,94.652,94.596,3.75452936]
[1770213374879,3.69160255,94.681,94.596,3.75452936]
[1770213375565,9.5223,94.661,94.606,3.75452936]
[1770213376167,3.69160255,94.665,94.609,9.5275]
[1770213376373,3.69160255,94.665,94.61,3.75452936]
[1770213377266,9.5214,94.67,94.61,3.75452936]
[1770213377472,9.5205,94.679,94.614,9.527]
[1770213377666,3.69160255,94.678,94.614,9.527]
[1770213377865,3.69160255,94.678,94.614,13.28152936]
[1770213378070,3.69160255,94.678,94.615,3.75452936]
[1770213378367,9.5211,94.673,94.617,3.75452936]
[1770213379263,3.69160255,94.669,94.612,9.5272]
[1770213379466,3.69160255,94.669,94.598,3.75452936]
[1770213380165,3.69160255,94.68,94.6,3.75452936]
[1770213381369,3.69160255,94.68,94.611,3.75452936]
[1770213381573,3.69160255,94.675,94.616,3.75452936]
[1770213381962,3.69160255,94.675,94.591,3.75452936]
[1770213382771,9.5223,94.661,94.605,13.28242936]
[1770213383371,9.5223,94.661,94.606,3.75452936]
[1770213383671,3.69160255,94.675,94.59,8.93428658]
[1770213383672,9.5215,94.669,94.608,3.75452936]
[1770213384470,9.5215,94.669,94.61,3.57406043]
[1770213384665,9.5224,94.661,94.61,3.57406043]
[1770213385066,3.68330591,94.66,94.598,9.5285]
[1770213385267,9.5234,94.651,94.591,3.57406043]
[1770213385670,3.68330591,94.65,94.591,3.57406043]
[1770213385872,3.68330591,94.65,94.57,8.93428658]
[1770213385873,9.525,94.634,94.571,3.57406043]
[1770213386672,9.5238,94.646,94.584,3.57406043]
[1770213387073,3.68330591,94.646,94.584,3.57406043]
[1770213387274,9.5257,94.628,94.584,3.57406043]
[1770213387870,9.5257,94.628,94.566,3.57406043]
[1770213388768,9.5248,94.636,94.58,3.57406043]
[1770213388973,3.68330591,94.646,94.58,3.57406043]
[1770213389580,3.68330591,94.625,94.557,3.57406043]
[1770213391171,3.68330591,94.625,94.567,9.5317]
[1770213391577,3.68330591,94.625,94.568,3.57406043]
[1770213392074,3.68330591,94.623,94.568,3.57406043]
[1770213392374,3.68330591,94.64,94.568,3.57406043]
[1770213393179,3.68330591,94.662,94.571,3.57406043]
[1770213393380,3.68330591,94.662,94.591,3.57406043]
[1770213393583,3.68330591,94.655,94.57,3.57406043]
[1770213394382,3.68330591,94.655,94.571,3.57406043]
[1770213394675,9.5245,94.64,94.579,3.57406043]
[1770213395074,9.5282,94.603,94.531,3.57406043]
[1770213395373,3.68330591,94.613,94.531,3.57406043]
[1770213395773,3.68330591,94.613,94.532,3.57406043]
[1770213395774,9.5291,94.594,94.532,3.57406043]
[1770213395972,3.68330591,94.613,94.532,3.57406043]
[1770213396480,3.68330591,94.584,94.514,3.57406043]
[1770213397779,9.5311,94.574,94.515,9.537]
[1770213398383,9.5311,94.574,94.514,3.57406043]
[1770213399579,3.68330591,94.584,94.525,9.536]
[1770213399776,3.68330591,94.584,94.526,3.57406043]
[1770213399976,9.5289,94.596,94.536,3.57406043]
[1770213400382,3.68330591,94.595,94.536,3.57406043]
[1770213400782,9.5293,94.592,94.536,3.57406043]
[1770213401275,8.94497326,94.61,94.536,3.57406043]
[1770213401475,9.5271,94.614,94.556,9.5328]
[1770213402082,9.5279,94.606,94.553,3.57406043]
[1770213403180,9.5279,94.606,94.554,9.533]
[1770213403385,3.68330591,94.616,94.554,9.533]
[1770213403586,3.68330591,94.616,94.498,84.4]
[1770213403587,3.68330591,94.616,94.535,3.57406043]
[1770213404183,9.5284,94.601,94.545,9.5339]
[1770213404388,9.5284,94.601,94.546,3.57406043]
[1770213406384,3.68330591,94.616,94.552,3.57406043]
[1770213406586,8.94497326,94.63,94.552,3.57406043]
[1770213406889,3.68330591,94.634,94.552,3.57406043]
[1770213407787,9.5264,94.621,94.564,9.532]
[1770213408289,9.5264,94.621,94.566,9.5318]
[1770213408885,9.5264,94.621,94.571,3.57406043]
[1770213409295,9.5255,94.629,94.571,3.57406043]
[1770213409494,9.5255,94.629,94.573,3.57406043]
[1770213410792,9.5255,94.629,94.577,9.5307]
[1770213411191,9.5255,94.629,94.573,3.57406043]
[1770213411394,3.68330591,94.634,94.573,3.57406043]
[1770213411793,3.68330591,94.651,94.592,3.57406043]
[1770213412393,9.5237,94.648,94.597,9.5287]
[1770213412592,3.68330591,94.647,94.592,3.57406043]
[1770213413093,3.68330591,94.647,94.575,3.57406043]
[1770213413697,9.5259,94.626,94.576,9.5309]
[1770213414686,9.5251,94.634,94.582,9.5302]
[1770213415393,3.68330591,94.647,94.591,3.84813342]
[1770213416697,3.73678919,94.665,94.591,3.84813342]
[1770213417498,3.73678919,94.665,94.614,13.36051607]
[1770213418786,3.6438299,94.682,94.623,3.83351607]
[1770213419793,9.5204,94.68,94.629,9.5254]
[1770213420495,9.5215,94.67,94.623,3.83351607]
[1770213420700,9.5215,94.67,94.591,3.83351607]
[1770213420701,3.6438299,94.67,94.591,3.83351607]
[1770213420898,8.94497326,94.71,94.591,3.83351607]
[1770213420899,3.6438299,94.659,94.591,3.83351607]
[1770213422305,9.523,94.655,94.6,9.5284]
[1770213423697,9.5241,94.644,94.591,3.83351607]
[1770213424106,9.5241,94.644,94.554,19.0661]
[1770213424107,3.6438299,94.643,94.579,3.83351607]
[1770213424402,3.6438299,94.639,94.579,3.83351607]
[1770213424602,3.6438299,94.639,94.551,3.83351607]
[1770213424803,9.5273,94.612,94.562,9.5322]
[1770213425106,9.5273,94.612,94.551,3.83351607]
[1770213425605,9.528,94.605,94.551,3.83351607]
[1770213426002,9.5269,94.615,94.557,3.83351607]
[1770213427208,9.5275,94.61,94.557,3.83351607]
[1770213427509,3.6438299,94.614,94.531,3.83351607]
[1770213427811,9.5291,94.594,94.534,9.5351]
[1770213428904,3.6438299,94.597,94.539,13.36801607]
[1770213429106,3.6438299,94.597,94.54,3.83351607]
[1770213429411,9.529,94.595,94.54,3.83351607]
[1770213429607,13.1728299,94.595,94.54,3.83351607]
[1770213429812,3.6438299,94.594,94.54,3.83351607]
[1770213430412,3.6438299,94.589,94.522,3.83351607]
[1770213431012,3.6438299,94.589,94.51,8.94497326]
[1770213431013,3.6438299,94.589,94.533,3.83351607]
[1770213432715,3.6438299,94.589,94.534,9.535]
[1770213433108,9.5279,94.606,94.535,3.83351607]
[1770213433513,3.6438299,94.61,94.548,3.83351607]
[1770213434211,3.6438299,94.627,94.564,3.83351607]
[1770213435313,9.5266,94.619,94.564,3.83351607]
[1770213435614,3.6438299,94.627,94.564,3.83351607]
[1770213435821,8.94497326,94.64,94.53,8.94497326]
[1770213435822,3.6438299,94.61,94.554,9.533]
[1770213436210,3.6438299,94.61,94.544,3.83351607]
[1770213436610,3.6438299,94.6,94.544,3.83351607]
[1770213437719,9.529,94.594,94.544,3.83351607]
[1770213438019,3.6438299,94.6,94.546,9.5338]